[Event "TUR-ch Youth U14 2019"]
[Site "Belek"]
[Date "2019.01.22"]
[Round "5"]
[White "Caglayan, Ezgisu"]
[Black "Yazici, Betul"]
[Result "1-0"]
[ECO "D00"]
[WhiteElo "1199"]
[BlackElo "1268"]
[Annotator "NA"]
[PlyCount "117"]
[EventDate "2019.01.20"]
[EventType "swiss"]
[EventCountry "TUR"]
[SourceTitle "playchess.com"]
[Source "ChessBase"]
[SourceQuality "1"]
[TimeControl "5400+30"]

1. d4 {[%emt 0:00:30]} Nf6 {[%emt 0:00:30]} 2. f4 {[%emt 0:00:00]} d5 {[%emt 0:00:30]} 3. e3 {[%emt 0:00:00]} e6 {[%emt 0:00:00]} 4. Bd3 {[%emt 0:00:00]} c5 {[%emt 0:02:00]} 5. c3 {[%emt 0:00:00]} Nbd7 {[%emt 0:08:30]} 6. Nf3 {[%emt 0:00:30]} Be7 {[%emt 0:05:30]} 7. Nbd2 {[%emt 0:00:00]} b6 {[%emt 0:01:30]} 8. O-O {[%emt 0:00:00]} Bb7 {[%emt 0:00:30]} 9. Ne5 {[%emt 0:00:30]} O-O {[%emt 0:15:30]} 10. Rf3 {[%emt 0:00:00]} cxd4 {[%emt 0:02:30]} 11. exd4 {[%emt 0:00:00]} Re8 {[%emt 0:09:30]} 12. Rh3 {[%emt 0:00:30]} g6 {[%emt 0:02:30]} 13. Qf3 {[%emt 0:07:30]} Bf8 {[%emt 0:05:30]} 14. Qg3 {[%emt 0:03:30]} Bg7 {[%emt 0:01:30]} 15. Nxd7 {[%emt 0:01:30]} Nxd7 {[%emt 0:03:30]} 16. Nf3 {[%emt 0:00:30]} Nf8 {[%emt 0:04:30]} 17. Qf2 {[%emt 0:08:30]} Bc8 {[%emt 0:05:30]} 18. Bb5 {[%emt 0:05:30]} Bd7 {[%emt 0:03:30]} 19. Bxd7 {[%emt 0:00:30]} Qxd7 {[%emt 0:01:30]} 20. Ne5 {[%emt 0:00:00]} Qe7 {[%emt 0:05:30]} 21. g4 {[%emt 0:01:00]} f6 {[%emt 0:00:33]} 22. Nf3 {[%emt 0:01:30]} e5 {[%emt 0:11:27]} 23. fxe5 {[%emt 0:02:30]} fxe5 {[%emt 0:00:09]} 24. dxe5 {[%emt 0:00:30]} Bxe5 {[%emt 0:00:09]} 25. Bg5 {[%emt 0:03:30]} Qc5 {[%emt 0:02:03]} 26. Be3 {[%emt 0:01:30]} Qe7 {[%emt 0:02:30]} 27. Nxe5 {[%emt 0:01:30]} Qxe5 {[%emt 0:00:33]} 28. Bd4 {[%emt 0:00:30]} Qg5 {[%emt 0:02:40]} 29. Rg3 {[%emt 0:01:30]} Ne6 {[%emt 0:01:14]} 30. Bf6 {[%emt 0:03:30]} Qf4 {[%emt 0:00:24]} 31. Qxf4 {[%emt 0:08:30]} Nxf4 {[%emt 0:00:04]} 32. Rf3 {[%emt 0:00:00]} Ne6 {[%emt 0:00:21]} 33. Raf1 {[%emt 0:01:00]} Nc5 {[%emt 0:01:38]} 34. Bg5 {[%emt 0:01:30]} Rf8 {[%emt 0:01:51]} 35. Be7 {[%emt 0:01:30]} Rxf3 {[%emt 0:00:53]} 36. Rxf3 {[%emt 0:00:30]} Re8 {[%emt 0:00:00]} 37. Bxc5 {[%emt 0:00:30]} bxc5 {[%emt 0:00:00]} 38. Kf2 {[%emt 0:00:30]} Re6 {[%emt 0:00:17]} 39. Rf4 {[%emt 0:00:30]} Kg7 {[%emt 0:00:55]} 40. g5 {[%emt 0:01:30]} Rb6 {[%emt 0:00:47]} 41. b3 {[%emt 0:01:30]} Rd6 {[%emt 0:01:07]} 42. Ke3 {[%emt 0:01:30]} Re6+ {[%emt 0:00:36]} 43. Kd3 {[%emt 0:02:30]} Re5 {[%emt 0:00:27]} 44. h4 {[%emt 0:00:30]} Rf5 {[%emt 0:00:27]} 45. Rxf5 {[%emt 0:06:30]} gxf5 {[%emt 0:00:05]} 46. h5 {[%emt 0:00:00]} Kf7 {[%emt 0:00:42]} 47. Ke3 {[%emt 0:01:00]} Ke6 {[%emt 0:00:34]} 48. Kf4 {[%emt 0:03:30]} a6 {[%emt 0:00:47]} 49. g6 {[%emt 0:00:30]} hxg6 {[%emt 0:00:35]} 50. hxg6 {[%emt 0:00:30]} Kf6 {[%emt 0:00:12]} 51. g7 {[%emt 0:00:30]} Kxg7 {[%emt 0:00:00]} 52. Kxf5 {[%emt 0:00:00]} Kf7 {[%emt 0:01:41]} 53. Ke5 {[%emt 0:00:00]} d4 {[%emt 0:00:30]} 54. cxd4 {[%emt 0:00:30]} cxd4 {[%emt 0:00:00]} 55. Kxd4 {[%emt 0:00:00]} a5 {[%emt 0:00:20]} 56. Kc5 {[%emt 0:00:00]} a4 {[%emt 0:01:06]} 57. bxa4 {[%emt 0:00:00]} Ke7 {[%emt 0:00:00]} 58. Kb6 {[%emt 0:00:00]} Kd8 {[%emt 0:00:38]} 59. Kb7 {[%emt 0:00:30]} 1-0

[Event "TUR-ch Youth U14 2019"]
[Site "Belek"]
[Date "2019.01.23"]
[Round "6"]
[White "Ince, Safiye Oyku"]
[Black "Kara, Gulce Nehir"]
[Result "1-0"]
[ECO "A07"]
[WhiteElo "1870"]
[BlackElo "1702"]
[Annotator "NA"]
[PlyCount "59"]
[EventDate "2019.01.20"]
[EventType "swiss"]
[EventCountry "TUR"]
[SourceTitle "playchess.com"]
[Source "ChessBase"]
[SourceQuality "1"]
[TimeControl "5400+30"]

1. Nf3 {[%emt 0:03:30]} d5 {[%emt 0:02:30]} 2. b3 {[%emt 0:00:30]} Bg4 {[%emt 0:00:30]} 3. Bb2 {[%emt 0:00:30]} Nd7 {[%emt 0:00:30]} 4. g3 {[%emt 0:00:00]} Ngf6 {[%emt 0:05:30]} 5. Bg2 {[%emt 0:03:00]} c6 {[%emt 0:02:30]} 6. O-O {[%emt 0:04:30]} Qc7 {[%emt 0:01:30]} 7. c4 {[%emt 0:04:30]} e5 {[%emt 0:04:30]} 8. d3 {[%emt 0:07:30]} Be7 {[%emt 0:12:30]} 9. Na3 {[%emt 0:07:30]} O-O {[%emt 0:05:30]} 10. Nc2 {[%emt 0:00:30]} Rad8 {[%emt 0:06:30]} 11. Ne3 {[%emt 0:10:30]} Bxf3 {[%emt 0:14:30]} 12. Bxf3 {[%emt 0:01:30]} e4 {[%emt 0:07:30]} 13. dxe4 {[%emt 0:05:30]} dxe4 {[%emt 0:00:30]} 14. Bg2 {[%emt 0:00:00]} Bc5 {[%emt 0:00:30]} 15. Qc1 {[%emt 0:01:00]} Qb6 {[%emt 0:01:30]} 16. Nf5 {[%emt 0:00:30]} h6 {[%emt 0:06:30]} 17. Qf4 {[%emt 0:02:30]} Rde8 {[%emt 0:05:30]} 18. Rad1 {[%emt 0:03:30]} Re6 {[%emt 0:01:31]} 19. Nxg7 {[%emt 0:01:30]} Kxg7 {[%emt 0:01:21]} 20. Rxd7 {[%emt 0:00:30]} e3 {[%emt 0:02:48]} 21. f3 {[%emt 0:02:30]} Rd8 {[%emt 0:01:58]} 22. Qg4+ {[%emt 0:04:30]} Kf8 {[%emt 0:00:00]} 23. Rxd8+ {[%emt 0:04:30]} Qxd8 {[%emt 0:00:20]} 24. Qh4 {[%emt 0:00:30]} Kg7 {[%emt 0:02:30]} 25. Qg4+ {[%emt 0:03:30]} Kf8 {[%emt 0:01:51]} 26. Qf5 {[%emt 0:00:30]} Be7 {[%emt 0:03:11]} 27. Bc3 {[%emt 0:00:30]} a6 {[%emt 0:01:21]} 28. Bh3 {[%emt 0:01:30]} Bd6 {[%emt 0:06:27]} 29. Rd1 {[%emt 0:01:30]} b6 {[%emt 0:00:48]} 30. Qd3 {[%emt 0:00:30]} 1-0

[Event "TUR-ch Youth U14 2019"]
[Site "Belek"]
[Date "2019.01.23"]
[Round "6"]
[White "Bicer, Atakan Mert"]
[Black "Ozcan, Ilker"]
[Result "0-1"]
[ECO "A36"]
[WhiteElo "1854"]
[BlackElo "1672"]
[Annotator "NA"]
[PlyCount "112"]
[EventDate "2019.01.20"]
[EventType "swiss"]
[EventCountry "TUR"]
[SourceTitle "playchess.com"]
[Source "ChessBase"]
[SourceQuality "1"]
[TimeControl "5400+30"]

1. c4 {[%emt 0:00:30]} g6 {[%emt 0:00:30]} 2. Nc3 {[%emt 0:00:30]} Bg7 {[%emt 0:00:30]} 3. g3 {[%emt 0:00:00]} d6 {[%emt 0:00:00]} 4. Bg2 {[%emt 0:00:00]} c5 {[%emt 0:00:00]} 5. e4 {[%emt 0:00:00]} Nc6 {[%emt 0:00:00]} 6. Nge2 {[%emt 0:00:00]} e6 {[%emt 0:00:00]} 7. d3 {[%emt 0:00:00]} Nge7 {[%emt 0:00:30]} 8. O-O {[%emt 0:00:00]} O-O {[%emt 0:00:00]} 9. Rb1 {[%emt 0:00:00]} Rb8 {[%emt 0:00:00]} 10. a3 {[%emt 0:00:00]} Nd4 {[%emt 0:01:30]} 11. Be3 {[%emt 0:02:30]} Nec6 {[%emt 0:00:30]} 12. b4 {[%emt 0:04:30]} b6 {[%emt 0:02:30]} 13. Qd2 {[%emt 0:11:30]} Bb7 {[%emt 0:05:30]} 14. f4 {[%emt 0:00:30]} f5 {[%emt 0:04:30]} 15. Bxd4 {[%emt 0:36:30]} Nxd4 {[%emt 0:03:30]} 16. Nxd4 {[%emt 0:00:30]} Bxd4+ {[%emt 0:05:30]} 17. Kh1 {[%emt 0:00:00]} a6 {[%emt 0:20:30]} 18. Ne2 {[%emt 0:03:00]} Qc7 {[%emt 0:13:30]} 19. Rfe1 {[%emt 0:10:30]} Bg7 {[%emt 0:05:30]} 20. Rbc1 {[%emt 0:01:30]} fxe4 {[%emt 0:07:30]} 21. dxe4 {[%emt 0:00:30]} Rbd8 {[%emt 0:00:30]} 22. Red1 {[%emt 0:04:30]} Bc6 {[%emt 0:02:30]} 23. Qe3 {[%emt 0:03:30]} Rfe8 {[%emt 0:02:30]} 24. Qf3 {[%emt 0:01:30]} Qf7 {[%emt 0:02:30]} 25. Ng1 {[%emt 0:02:38]} h6 {[%emt 0:04:39]} 26. Qb3 {[%emt 0:01:24]} Qb7 {[%emt 0:01:22]} 27. Re1 {[%emt 0:00:39]} Qc7 {[%emt 0:01:53]} 28. Nf3 {[%emt 0:00:54]} Kh7 {[%emt 0:02:35]} 29. Ng1 {[%emt 0:02:51]} Re7 {[%emt 0:01:18]} 30. h4 {[%emt 0:01:30]} Bf6 {[%emt 0:01:39]} 31. Rcd1 {[%emt 0:01:53]} Rg7 {[%emt 0:01:38]} 32. Qd3 {[%emt 0:01:07]} Kh8 {[%emt 0:01:36]} 33. Ne2 {[%emt 0:02:52]} g5 {[%emt 0:02:16]} 34. hxg5 {[%emt 0:00:30]} hxg5 {[%emt 0:00:00]} 35. f5 {[%emt 0:00:00]} Rh7+ {[%emt 0:02:44]} 36. Kg1 {[%emt 0:00:00]} Be5 {[%emt 0:00:00]} 37. g4 {[%emt 0:01:32]} exf5 {[%emt 0:00:00]} 38. gxf5 {[%emt 0:03:28]} Rh2 {[%emt 0:00:42]} 39. Kf2 {[%emt 0:03:42]} Qh7 {[%emt 0:01:07]} 40. Rh1 {[%emt 0:01:08]} Qh4+ {[%emt 0:00:57]} 41. Ng3 {[%emt 0:00:42]} Bd4+ {[%emt 0:01:49]} 42. Ke1 {[%emt 0:00:32]} Rxh1+ {[%emt 0:01:00]} 43. Bxh1 {[%emt 0:00:05]} Qh2 {[%emt 0:01:15]} 44. Qf3 {[%emt 0:00:48]} Re8 {[%emt 0:01:53]} 45. Qg2 {[%emt 0:01:27]} Qh4 {[%emt 0:00:35]} 46. Kf1 {[%emt 0:00:35]} Ba4 {[%emt 0:00:33]} 47. Rd2 {[%emt 0:00:28]} Qf4+ {[%emt 0:00:26]} 48. Ke2 {[%emt 0:00:35]} Qe3+ {[%emt 0:01:08]} 49. Kf1 {[%emt 0:00:02]} Bb3 {[%emt 0:00:00]} 50. Qh2+ {[%emt 0:00:44]} Kg8 {[%emt 0:00:08]} 51. Qh6 {[%emt 0:00:49]} Bxc4+ {[%emt 0:00:35]} 52. Kg2 {[%emt 0:00:07]} Qxd2+ {[%emt 0:00:10]} 53. Kh3 {[%emt 0:00:19]} Bg7 {[%emt 0:00:11]} 54. Qh5 {[%emt 0:00:45]} Bf7 {[%emt 0:00:05]} 55. Qf3 {[%emt 0:00:00]} Qf4 {[%emt 0:00:16]} 56. Qd1 {[%emt 0:00:56]} Be5 {[%emt 0:00:10]} 0-1

[Event "TUR-ch Youth U14 2019"]
[Site "Belek"]
[Date "2019.01.23"]
[Round "6"]
[White "Ozsac, Samet Harun"]
[Black "Uysal, Ugur"]
[Result "1-0"]
[ECO "B42"]
[WhiteElo "1743"]
[BlackElo "1585"]
[Annotator "NA"]
[PlyCount "53"]
[EventDate "2019.01.20"]
[EventType "swiss"]
[EventCountry "TUR"]
[SourceTitle "playchess.com"]
[Source "ChessBase"]
[SourceQuality "1"]
[TimeControl "5400+30"]

1. e4 {[%emt 0:00:30]} c5 {[%emt 0:00:30]} 2. Nf3 {[%emt 0:00:00]} e6 {[%emt 0:00:30]} 3. d4 {[%emt 0:00:00]} cxd4 {[%emt 0:00:00]} 4. Nxd4 {[%emt 0:00:30]} a6 {[%emt 0:00:00]} 5. Bd3 {[%emt 0:01:30]} Bc5 {[%emt 0:00:30]} 6. Nb3 {[%emt 0:00:30]} Be7 {[%emt 0:00:00]} 7. Qg4 {[%emt 0:00:00]} g6 {[%emt 0:00:00]} 8. Qe2 {[%emt 0:02:00]} d6 {[%emt 0:00:00]} 9. O-O {[%emt 0:02:30]} Qc7 {[%emt 0:01:00]} 10. a4 {[%emt 0:01:30]} b6 {[%emt 0:00:00]} 11. Na3 {[%emt 0:03:30]} Bb7 {[%emt 0:00:00]} 12. Nc4 {[%emt 0:05:30]} Nd7 {[%emt 0:01:30]} 13. Be3 {[%emt 0:07:30]} Rc8 {[%emt 0:03:30]} 14. a5 {[%emt 0:09:30]} b5 {[%emt 0:00:00]} 15. Nb6 {[%emt 0:00:30]} Nxb6 {[%emt 0:00:00]} 16. axb6 {[%emt 0:12:30]} Qd7 {[%emt 0:04:30]} 17. c4 {[%emt 0:08:30]} b4 {[%emt 0:04:30]} 18. Qd2 {[%emt 0:11:30]} Nf6 {[%emt 0:05:30]} 19. Qxb4 {[%emt 0:06:30]} Nxe4 {[%emt 0:08:30]} 20. Bxe4 {[%emt 0:06:02]} Bxe4 {[%emt 0:00:30]} 21. Rxa6 {[%emt 0:04:05]} Bxg2 {[%emt 0:04:30]} 22. Ra7 {[%emt 0:15:50]} Bb7 {[%emt 0:00:30]} 23. Na5 {[%emt 0:00:45]} Rb8 {[%emt 0:00:00]} 24. Nxb7 {[%emt 0:00:29]} Rxb7 {[%emt 0:00:00]} 25. Rxb7 {[%emt 0:00:15]} Qxb7 {[%emt 0:00:00]} 26. Qb5+ {[%emt 0:00:22]} Kf8 {[%emt 0:03:00]} 27. Bh6+ {[%emt 0:00:30]} 1-0

[Event "TUR-ch Youth U14 2019"]
[Site "Belek"]
[Date "2019.01.23"]
[Round "6"]
[White "Tikvesli, Ceylin"]
[Black "Eraslan, Yagmur"]
[Result "1/2-1/2"]
[ECO "D11"]
[WhiteElo "1677"]
[BlackElo "1567"]
[Annotator "NA"]
[PlyCount "77"]
[EventDate "2019.01.20"]
[EventType "swiss"]
[EventCountry "TUR"]
[SourceTitle "playchess.com"]
[Source "ChessBase"]
[SourceQuality "1"]
[TimeControl "5400+30"]

1. d4 {[%emt 0:00:30]} d5 {[%emt 0:00:30]} 2. c4 {[%emt 0:00:30]} c6 {[%emt 0:00:30]} 3. Nf3 {[%emt 0:00:30]} Nf6 {[%emt 0:00:30]} 4. g3 {[%emt 0:00:00]} Bf5 {[%emt 0:00:30]} 5. Bg2 {[%emt 0:00:00]} e6 {[%emt 0:00:30]} 6. O-O {[%emt 0:00:00]} Be7 {[%emt 0:00:30]} 7. Nc3 {[%emt 0:00:00]} O-O {[%emt 0:00:30]} 8. Nd2 {[%emt 0:00:30]} Nbd7 {[%emt 0:02:30]} 9. e4 {[%emt 0:01:30]} dxe4 {[%emt 0:00:30]} 10. Ndxe4 {[%emt 0:00:00]} Nxe4 {[%emt 0:01:30]} 11. Nxe4 {[%emt 0:00:00]} Nf6 {[%emt 0:01:30]} 12. Nc3 {[%emt 0:10:30]} Qd7 {[%emt 0:10:30]} 13. d5 {[%emt 0:06:30]} exd5 {[%emt 0:02:30]} 14. cxd5 {[%emt 0:00:00]} cxd5 {[%emt 0:00:30]} 15. Nxd5 {[%emt 0:00:00]} Rad8 {[%emt 0:08:30]} 16. Nxe7+ {[%emt 0:05:30]} Qxe7 {[%emt 0:00:30]} 17. Qe1 {[%emt 0:04:30]} Rfe8 {[%emt 0:12:30]} 18. Qxe7 {[%emt 0:01:30]} Rxe7 {[%emt 0:00:00]} 19. Bg5 {[%emt 0:06:30]} h6 {[%emt 0:01:00]} 20. Bxf6 {[%emt 0:05:30]} gxf6 {[%emt 0:00:30]} 21. Bf3 {[%emt 0:00:30]} Rd3 {[%emt 0:02:30]} 22. Kg2 {[%emt 0:04:30]} Bh3+ {[%emt 0:04:30]} 23. Kxh3 {[%emt 0:00:30]} Rxf3 {[%emt 0:00:00]} 24. Kg2 {[%emt 0:02:30]} Rd3 {[%emt 0:01:00]} 25. Rfe1 {[%emt 0:01:30]} Rxe1 {[%emt 0:00:30]} 26. Rxe1 {[%emt 0:00:00]} Rd2 {[%emt 0:00:30]} 27. Rb1 {[%emt 0:00:00]} b5 {[%emt 0:00:00]} 28. a3 {[%emt 0:04:30]} a6 {[%emt 0:01:00]} 29. Kf3 {[%emt 0:01:30]} Kg7 {[%emt 0:00:30]} 30. Ke3 {[%emt 0:00:30]} Rc2 {[%emt 0:00:30]} 31. h3 {[%emt 0:03:30]} Kg6 {[%emt 0:04:30]} 32. f4 {[%emt 0:10:30]} h5 {[%emt 0:02:30]} 33. Kf3 {[%emt 0:00:30]} Rh2 {[%emt 0:01:30]} 34. b4 {[%emt 0:02:30]} Rc2 {[%emt 0:15:30]} 35. Rb3 {[%emt 0:00:30]} Rd2 {[%emt 0:04:30]} 36. Ke4 {[%emt 0:06:30]} Rh2 {[%emt 0:01:30]} 37. Kf3 {[%emt 0:11:44]} Rd2 {[%emt 0:01:30]} 38. Ke4 {[%emt 0:01:42]} Rh2 {[%emt 0:00:48]} 39. Kf3 {[%emt 0:05:55]} 1/2-1/2

[Event "TUR-ch Youth U14 2019"]
[Site "Belek"]
[Date "2019.01.23"]
[Round "6"]
[White "Bozyaka, Altug"]
[Black "Basara, Arda"]
[Result "0-1"]
[ECO "D14"]
[WhiteElo "1600"]
[BlackElo "1737"]
[Annotator "NA"]
[PlyCount "68"]
[EventDate "2019.01.20"]
[EventType "swiss"]
[EventCountry "TUR"]
[SourceTitle "playchess.com"]
[Source "ChessBase"]
[SourceQuality "1"]
[TimeControl "5400+30"]

1. d4 {[%emt 0:00:30]} d5 {[%emt 0:00:30]} 2. c4 {[%emt 0:00:00]} c6 {[%emt 0:00:30]} 3. cxd5 {[%emt 0:01:00]} cxd5 {[%emt 0:00:00]} 4. Nf3 {[%emt 0:00:00]} Nf6 {[%emt 0:04:00]} 5. Nc3 {[%emt 0:01:00]} Nc6 {[%emt 0:01:30]} 6. Bf4 {[%emt 0:00:30]} Bf5 {[%emt 0:09:30]} 7. Qb3 {[%emt 0:01:30]} Qb6 {[%emt 0:22:30]} 8. Qxb6 {[%emt 0:04:30]} axb6 {[%emt 0:00:00]} 9. e3 {[%emt 0:04:30]} e6 {[%emt 0:06:00]} 10. Bb5 {[%emt 0:06:30]} Nd7 {[%emt 0:01:30]} 11. Kd2 {[%emt 0:05:30]} Be7 {[%emt 0:01:30]} 12. Rac1 {[%emt 0:05:30]} O-O {[%emt 0:01:30]} 13. h3 {[%emt 0:03:30]} h6 {[%emt 0:13:30]} 14. g4 {[%emt 0:05:30]} Bh7 {[%emt 0:00:30]} 15. g5 {[%emt 0:03:30]} hxg5 {[%emt 0:01:30]} 16. Nxg5 {[%emt 0:02:30]} Bf5 {[%emt 0:03:30]} 17. h4 {[%emt 0:04:30]} f6 {[%emt 0:02:30]} 18. Nf3 {[%emt 0:03:30]} Kf7 {[%emt 0:02:30]} 19. a3 {[%emt 0:07:30]} Rh8 {[%emt 0:00:30]} 20. Bg3 {[%emt 0:08:30]} g5 {[%emt 0:04:30]} 21. Ke2 {[%emt 0:04:30]} Bg4 {[%emt 0:02:58]} 22. Rcg1 {[%emt 0:01:30]} e5 {[%emt 0:02:38]} 23. Bxc6 {[%emt 0:11:54]} bxc6 {[%emt 0:00:29]} 24. dxe5 {[%emt 0:01:38]} fxe5 {[%emt 0:00:25]} 25. e4 {[%emt 0:00:36]} d4 {[%emt 0:00:17]} 26. Nb1 {[%emt 0:05:26]} d3+ {[%emt 0:00:06]} 27. Kxd3 {[%emt 0:01:02]} Bxf3 {[%emt 0:00:09]} 28. Rh3 {[%emt 0:00:55]} Bg4 {[%emt 0:03:03]} 29. Rhh1 {[%emt 0:00:27]} gxh4 {[%emt 0:00:22]} 30. Bh2 {[%emt 0:00:59]} Bf3 {[%emt 0:00:08]} 31. Ke3 {[%emt 0:00:08]} Bxh1 {[%emt 0:01:04]} 32. Rxh1 {[%emt 0:00:30]} Bc5+ {[%emt 0:00:30]} 33. Ke2 {[%emt 0:00:30]} Ke6 {[%emt 0:00:30]} 34. Nc3 {[%emt 0:00:30]} Raf8 {[%emt 0:00:30]} 0-1

[Event "TUR-ch Youth U14 2019"]
[Site "Belek"]
[Date "2019.01.23"]
[Round "6"]
[White "Cankurtaran, Merve"]
[Black "Caglayan, Ezgisu"]
[Result "0-1"]
[ECO "D02"]
[WhiteElo "1428"]
[BlackElo "1199"]
[Annotator "NA"]
[PlyCount "100"]
[EventDate "2019.01.20"]
[EventType "swiss"]
[EventCountry "TUR"]
[SourceTitle "playchess.com"]
[Source "ChessBase"]
[SourceQuality "1"]
[TimeControl "5400+30"]

1. d4 {[%emt 0:00:30]} d5 {[%emt 0:00:30]} 2. Nf3 {[%emt 0:00:30]} e6 {[%emt 0:00:00]} 3. Bg5 {[%emt 0:01:30]} Nf6 {[%emt 0:01:00]} 4. c3 {[%emt 0:00:30]} Be7 {[%emt 0:00:30]} 5. e3 {[%emt 0:04:30]} a6 {[%emt 0:01:30]} 6. Bd3 {[%emt 0:00:30]} Nbd7 {[%emt 0:01:30]} 7. Nbd2 {[%emt 0:00:30]} b5 {[%emt 0:00:00]} 8. O-O {[%emt 0:02:30]} Bb7 {[%emt 0:01:00]} 9. Ne5 {[%emt 0:03:30]} Nxe5 {[%emt 0:01:30]} 10. dxe5 {[%emt 0:00:30]} Ne4 {[%emt 0:00:30]} 11. Bxe7 {[%emt 0:02:30]} Qxe7 {[%emt 0:01:30]} 12. Bxe4 {[%emt 0:04:30]} dxe4 {[%emt 0:00:30]} 13. Qc2 {[%emt 0:15:30]} Qg5 {[%emt 0:03:30]} 14. Nxe4 {[%emt 0:03:30]} Qxe5 {[%emt 0:01:30]} 15. Ng3 {[%emt 0:01:30]} h5 {[%emt 0:06:30]} 16. Rae1 {[%emt 0:05:30]} h4 {[%emt 0:03:30]} 17. f4 {[%emt 0:13:30]} Qd5 {[%emt 0:02:30]} 18. Nh1 {[%emt 0:02:30]} h3 {[%emt 0:02:30]} 19. e4 {[%emt 0:02:30]} Qxa2 {[%emt 0:20:30]} 20. Rf3 {[%emt 0:05:30]} hxg2 {[%emt 0:05:30]} 21. Qxg2 {[%emt 0:01:30]} O-O-O {[%emt 0:00:30]} 22. Ng3 {[%emt 0:02:30]} f5 {[%emt 0:03:30]} 23. Qe2 {[%emt 0:05:30]} Kb8 {[%emt 0:02:30]} 24. c4 {[%emt 0:10:17]} Qxc4 {[%emt 0:03:30]} 25. Qxc4 {[%emt 0:00:37]} bxc4 {[%emt 0:00:30]} 26. Rc3 {[%emt 0:00:27]} fxe4 {[%emt 0:01:30]} 27. Rxc4 {[%emt 0:02:19]} Rd2 {[%emt 0:01:30]} 28. Re2 {[%emt 0:02:17]} Rxe2 {[%emt 0:03:30]} 29. Nxe2 {[%emt 0:00:06]} Rd8 {[%emt 0:03:30]} 30. Kf2 {[%emt 0:03:12]} Rd2 {[%emt 0:00:30]} 31. b4 {[%emt 0:00:56]} Rd3 {[%emt 0:00:30]} 32. Ng3 {[%emt 0:03:47]} Rf3+ {[%emt 0:01:30]} 33. Ke2 {[%emt 0:00:09]} Rxf4 {[%emt 0:00:00]} 34. Ke3 {[%emt 0:00:50]} Rh4 {[%emt 0:00:00]} 35. Nxe4 {[%emt 0:00:24]} Rxe4+ {[%emt 0:01:30]} 36. Rxe4 {[%emt 0:00:00]} Bxe4 {[%emt 0:00:00]} 37. Kxe4 {[%emt 0:00:04]} Kc8 {[%emt 0:00:00]} 38. Ke5 {[%emt 0:00:30]} Kd7 {[%emt 0:00:30]} 39. h4 {[%emt 0:00:30]} Ke7 {[%emt 0:00:30]} 40. h5 {[%emt 0:00:30]} Kf7 {[%emt 0:00:30]} 41. Ke4 {[%emt 0:00:30]} Kf6 {[%emt 0:00:30]} 42. Kf4 {[%emt 0:00:30]} e5+ {[%emt 0:00:30]} 43. Kg4 {[%emt 0:00:30]} e4 {[%emt 0:00:30]} 44. h6 {[%emt 0:00:30]} gxh6 {[%emt 0:00:30]} 45. Kf4 {[%emt 0:00:30]} e3 {[%emt 0:00:30]} 46. Kxe3 {[%emt 0:00:30]} Kf5 {[%emt 0:00:00]} 47. Kf3 {[%emt 0:00:31]} h5 {[%emt 0:00:00]} 48. Ke3 {[%emt 0:00:49]} h4 {[%emt 0:00:30]} 49. Kf3 {[%emt 0:00:19]} h3 {[%emt 0:00:00]} 50. Kg3 {[%emt 0:00:00]} h2 {[%emt 0:05:00]} 0-1

[Event "TUR-ch Youth U14 2019"]
[Site "Belek"]
[Date "2019.01.24"]
[Round "7"]
[White "Caberoglu, Arda"]
[Black "Bozyaka, Altug"]
[Result "1/2-1/2"]
[ECO "B52"]
[WhiteElo "1962"]
[BlackElo "1600"]
[Annotator "NA"]
[PlyCount "129"]
[EventDate "2019.01.20"]
[EventType "swiss"]
[EventCountry "TUR"]
[SourceTitle "playchess.com"]
[Source "ChessBase"]
[SourceQuality "1"]
[TimeControl "5400+30"]

1. e4 c5 {[%emt 0:00:30]} 2. Nf3 {[%emt 0:00:30]} d6 {[%emt 0:00:30]} 3. Bb5+ {[%emt 0:00:30]} Bd7 {[%emt 0:00:30]} 4. Bxd7+ {[%emt 0:00:30]} Nxd7 {[%emt 0:00:30]} 5. O-O {[%emt 0:01:00]} Ngf6 {[%emt 0:01:30]} 6. Re1 {[%emt 0:01:30]} e6 {[%emt 0:01:30]} 7. c3 {[%emt 0:00:30]} Be7 {[%emt 0:02:30]} 8. d4 {[%emt 0:00:30]} O-O {[%emt 0:01:30]} 9. Nbd2 {[%emt 0:03:30]} Rc8 {[%emt 0:00:30]} 10. b3 {[%emt 0:21:30]} Qc7 {[%emt 0:09:30]} 11. Ba3 {[%emt 0:02:30]} a6 {[%emt 0:10:30]} 12. Qe2 {[%emt 0:08:30]} cxd4 {[%emt 0:07:30]} 13. cxd4 {[%emt 0:01:30]} Qa5 {[%emt 0:38:30]} 14. Bxd6 {[%emt 0:55:00]} Bxd6 {[%emt 0:00:30]} 15. e5 {[%emt 0:00:30]} Ne8 {[%emt 0:16:30]} (15... Bb4 $17 16. exf6 Nxf6) 16. exd6 {[%emt 0:00:30]} Nxd6 {[%emt 0:00:30]} 17. Ne4 {[%emt 0:09:30]} Nf5 {[%emt 0:03:30]} 18. Rac1 {[%emt 0:04:30]} Nb8 {[%emt 0:05:30]} 19. g4 {[%emt 0:06:30]} Ne7 {[%emt 0:03:30]} 20. Neg5 {[%emt 0:06:59]} Rxc1 {[%emt 0:15:11]} 21. Rxc1 {[%emt 0:00:10]} Nbc6 {[%emt 0:03:53]} 22. Qd3 {[%emt 0:10:30]} g6 {[%emt 0:02:06]} 23. Rc5 {[%emt 0:04:33]} Qd8 {[%emt 0:03:23]} 24. h4 {[%emt 0:02:46]} Qd6 {[%emt 0:02:47]} 25. Qd2 {[%emt 0:00:30]} Rd8 {[%emt 0:01:49]} 26. Rc4 {[%emt 0:00:30]} e5 {[%emt 0:01:54]} 27. Qe3 {[%emt 0:00:30]} exd4 {[%emt 0:01:34]} 28. Qd2 {[%emt 0:00:31]} b5 {[%emt 0:01:31]} 29. Rc1 {[%emt 0:00:28]} Ne5 {[%emt 0:00:53]} 30. Qf4 {[%emt 0:00:02]} Nxf3+ {[%emt 0:00:54]} 31. Qxf3 {[%emt 0:00:30]} Qd5 {[%emt 0:00:30]} 32. Qf6 {[%emt 0:00:30]} Re8 {[%emt 0:00:30]} 33. Rc7 {[%emt 0:00:30]} d3 {[%emt 0:00:30]} 34. Nf3 {[%emt 0:00:30]} Qe6 {[%emt 0:00:30]} 35. Qd4 {[%emt 0:00:30]} Nc6 {[%emt 0:00:30]} 36. Qxd3 {[%emt 0:00:30]} Qxg4+ {[%emt 0:00:30]} 37. Kf1 {[%emt 0:00:30]} Qh3+ {[%emt 0:00:30]} 38. Kg1 {[%emt 0:00:30]} Qg4+ {[%emt 0:00:30]} 39. Kf1 {[%emt 0:00:30]} Qh3+ {[%emt 0:00:30]} 40. Kg1 {[%emt 0:00:30]} Rd8 {[%emt 0:00:10]} 41. Qe2 {[%emt 0:00:15]} Qg4+ {[%emt 0:00:30]} 42. Kf1 {[%emt 0:00:30]} Ne5 {[%emt 0:00:45]} 43. Nxe5 {[%emt 0:01:27]} Rd1+ {[%emt 0:00:30]} 44. Qxd1 {[%emt 0:00:30]} Qxd1+ {[%emt 0:00:30]} 45. Kg2 {[%emt 0:00:30]} Qd5+ {[%emt 0:00:30]} 46. Nf3 {[%emt 0:00:00]} Qd6 {[%emt 0:00:00]} 47. Rc3 {[%emt 0:00:00]} Qd5 {[%emt 0:00:22]} 48. Re3 {[%emt 0:00:00]} Kg7 {[%emt 0:00:30]} 49. a3 {[%emt 0:00:00]} h6 {[%emt 0:00:55]} 50. b4 {[%emt 0:00:11]} Kf6 {[%emt 0:00:30]} 51. Kf1 {[%emt 0:00:30]} Qd1+ {[%emt 0:00:30]} 52. Kg2 {[%emt 0:00:30]} g5 {[%emt 0:00:30]} 53. hxg5+ {[%emt 0:00:30]} hxg5 {[%emt 0:00:30]} 54. Nh2 {[%emt 0:00:28]} Kg6 {[%emt 0:00:33]} 55. Nf1 {[%emt 0:00:47]} Qd5+ {[%emt 0:00:25]} 56. Kg1 {[%emt 0:01:00]} f5 {[%emt 0:00:43]} 57. Rc3 {[%emt 0:00:16]} g4 $19 {[%emt 0:00:35]} 58. Ne3 {[%emt 0:01:48]} Qe4 {[%emt 0:00:21]} 59. Rc5 {[%emt 0:00:32]} Kg5 {[%emt 0:00:40]} 60. Rxf5+ {[%emt 0:00:45]} Qxf5 {[%emt 0:00:07]} 61. Nxf5 {[%emt 0:00:30]} Kxf5 {[%emt 0:00:02]} 62. Kh2 {[%emt 0:00:17]} Kg5 {[%emt 0:01:23]} 63. Kg3 {[%emt 0:00:40]} Kf5 {[%emt 0:00:26]} 64. f4 {[%emt 0:00:34]} gxf3 {[%emt 0:00:36]} 65. Kxf3 {[%emt 0:00:01]} 1/2-1/2